[Event "95th Caplin Hastings Congress"]
[Site "Hastings"]
[Date "2020.01.03"]
[Round "7.5"]
[White "Petrov, Vladimir Sergeev"]
[Black "Sengupta, Deep"]
[Result "0-1"]
[ECO "C07"]
[WhiteElo "2353"]
[BlackElo "2550"]
[Annotator "ChessBase"]
[PlyCount "102"]
[EventDate "2019.12.28"]
[EventType "swiss"]
[EventCountry "ENG"]
[SourceTitle "playchess.com"]
[Source "ChessBase"]
[SourceQuality "1"]
[TimeControl "40/6600+30:3000+30"]

1. e4 {[%emt 0:10:38]} e6 {[%emt 0:10:42]} 2. d4 {[%emt 0:00:10]} d5 {[%emt 0:00:04]} 3. Nd2 {[%emt 0:00:07]} c5 {[%emt 0:00:03]} 4. exd5 {[%emt 0:00:07]} Qxd5 {[%emt 0:00:05]} 5. Ngf3 {[%emt 0:00:10]} cxd4 {[%emt 0:00:06]} 6. Bc4 {[%emt 0:00:05]} Qd8 {[%emt 0:00:03]} 7. O-O {[%emt 0:03:23]} Nc6 {[%emt 0:00:05]} 8. Nb3 {[%emt 0:01:24]} a6 {[%emt 0:00:05]} 9. a4 {[%emt 0:02:29]} Nf6 {[%emt 0:02:23]} 10. Qe2 {[%emt 0:01:14]} Bd6 {[%emt 0:02:14]} 11. Rd1 {[%emt 0:00:44]} Qe7 {[%emt 0:00:23]} 12. Nbxd4 {[%emt 0:01:34]} Nxd4 {[%emt 0:00:05]} 13. Rxd4 {[%emt 0:00:15]} e5 {[%emt 0:01:12]} 14. Rxd6 {[%emt 0:00:29]} Qxd6 {[%emt 0:00:02]} 15. b3 {[%emt 0:00:10]} e4 {[%emt 0:00:04]} 16. Ba3 {[%emt 0:04:53]} Qf4 {[%emt 0:00:05]} 17. Qe1 {[%emt 0:37:46]} Be6 {[%emt 0:00:43]} 18. Rd1 {[%emt 0:05:43]} Rd8 {[%emt 0:16:44]} 19. Nd2 {[%emt 0:15:51]} Ng4 {[%emt 0:27:03]} 20. g3 {[%emt 0:00:41]} Qf5 {[%emt 0:00:05]} 21. Bf1 {[%emt 0:16:25]} e3 {[%emt 0:09:39]} 22. fxe3 {[%emt 0:00:43]} Qe5 {[%emt 0:10:48]} 23. Nc4 {[%emt 0:03:41]} Rxd1 {[%emt 0:02:14]} 24. Qxd1 {[%emt 0:01:08]} Bxc4 {[%emt 0:00:12]} 25. Bxc4 {[%emt 0:01:59]} Qxe3+ {[%emt 0:00:06]} 26. Kg2 {[%emt 0:00:09]} Qf2+ {[%emt 0:01:39]} 27. Kh3 {[%emt 0:00:07]} Ne3 {[%emt 0:00:03]} 28. Qe2 {[%emt 0:04:38]} Qxe2 {[%emt 0:00:40]} 29. Bxe2 {[%emt 0:00:03]} Nxc2 {[%emt 0:01:16]} 30. Bc5 {[%emt 0:00:57]} Kd7 {[%emt 0:00:27]} 31. Bd3 {[%emt 0:04:07]} Kc6 {[%emt 0:00:35]} 32. Bg1 {[%emt 0:02:03]} Nb4 {[%emt 0:01:07]} 33. Be4+ {[%emt 0:00:18]} Kc7 {[%emt 0:00:06]} 34. a5 {[%emt 0:00:44]} Re8 {[%emt 0:01:35]} 35. Bb6+ {[%emt 0:00:26]} Kb8 {[%emt 0:00:04]} 36. Bf3 {[%emt 0:00:27]} Nc6 {[%emt 0:00:30]} 37. Bd5 {[%emt 0:00:37]} f6 {[%emt 0:00:41]} 38. Kg4 {[%emt 0:01:55]} Re5 {[%emt 0:00:23]} 39. Bg8 {[%emt 0:00:14]} Nxa5 {[%emt 0:00:30]} 40. b4 {[%emt 0:00:25]} Nc6 {[%emt 0:00:05]} 41. Bc5 {[%emt 0:50:13]} Kc7 {[%emt 0:50:56]} 42. Bxh7 {[%emt 0:00:26]} a5 {[%emt 0:00:07]} 43. Bf8 {[%emt 0:01:12]} axb4 {[%emt 0:00:05]} 44. Kf4 {[%emt 0:00:00]} b3 {[%emt 0:00:00]} 45. Bg6 {[%emt 0:00:00]} Nd4 {[%emt 0:00:00]} 46. Ba3 {[%emt 0:00:00]} Re2 {[%emt 0:00:00]} 47. h4 {[%emt 0:00:00]} b2 {[%emt 0:00:00]} 48. Bd3 {[%emt 0:00:00]} Rd2 {[%emt 0:00:00]} 49. Be4 {[%emt 0:00:00]} Rf2+ {[%emt 0:00:00]} 50. Ke3 {[%emt 0:00:00]} Re2+ {[%emt 0:00:00]} 51. Kxd4 {[%emt 0:00:00]} Rxe4+ {[%emt 0:00:00]} 0-1

[Event "95th Caplin Hastings Congress"]
[Site "Hastings"]
[Date "2020.01.03"]
[Round "7.6"]
[White "Kantor, Gergely"]
[Black "Murphy, Conor E"]
[Result "1-0"]
[ECO "E04"]
[WhiteElo "2541"]
[BlackElo "2407"]
[Annotator "ChessBase"]
[PlyCount "41"]
[EventDate "2019.12.28"]
[EventType "swiss"]
[EventCountry "ENG"]
[SourceTitle "playchess.com"]
[Source "ChessBase"]
[SourceQuality "1"]
[TimeControl "40/6600+30:3000+30"]

1. d4 {[%emt 0:12:03]} Nf6 {[%emt 0:09:42]} 2. c4 {[%emt 0:01:02]} e6 {[%emt 0:00:07]} 3. g3 {[%emt 0:00:02]} d5 {[%emt 0:00:18]} 4. Bg2 {[%emt 0:00:10]} dxc4 {[%emt 0:00:18]} 5. Nf3 {[%emt 0:01:45]} a6 {[%emt 0:00:15]} 6. O-O {[%emt 0:01:08]} Nc6 {[%emt 0:00:20]} 7. e3 {[%emt 0:00:23]} Bd7 {[%emt 0:00:31]} 8. Qe2 {[%emt 0:02:02]} Bd6 {[%emt 0:00:52]} 9. Qxc4 {[%emt 0:02:30]} O-O {[%emt 0:00:35]} 10. Nc3 {[%emt 0:05:10]} Rb8 {[%emt 0:08:03]} 11. Rd1 {[%emt 0:04:28]} Qe7 {[%emt 0:14:44]} 12. e4 {[%emt 0:09:03]} e5 {[%emt 0:01:17]} 13. Bg5 {[%emt 0:06:06]} exd4 {[%emt 0:29:01]} 14. Nd5 {[%emt 0:03:56]} Qxe4 {[%emt 0:07:48]} 15. Nh4 {[%emt 0:09:53]} Qe6 {[%emt 0:11:36]} 16. Bxf6 {[%emt 0:01:32]} gxf6 {[%emt 0:00:17]} 17. Re1 {[%emt 0:13:39]} Be5 {[%emt 0:07:03]} 18. f4 {[%emt 0:02:18]} b5 {[%emt 0:07:32]} 19. Qc5 {[%emt 0:15:09]} d3 {[%emt 0:04:12]} 20. fxe5 {[%emt 0:01:21]} fxe5 {[%emt 0:00:21]} 21. Rad1 {[%emt 0:02:42]} 1-0

[Event "95th Caplin Hastings Congress"]
[Site "Hastings"]
[Date "2020.01.03"]
[Round "7.7"]
[White "Grieve, Harry"]
[Black "Stany, G.A."]
[Result "0-1"]
[ECO "C50"]
[WhiteElo "2299"]
[BlackElo "2519"]
[Annotator "ChessBase"]
[PlyCount "62"]
[EventDate "2019.12.28"]
[EventType "swiss"]
[EventCountry "ENG"]
[SourceTitle "playchess.com"]
[Source "ChessBase"]
[SourceQuality "1"]
[TimeControl "40/6600+30:3000+30"]

1. e4 {[%emt 0:09:35]} e5 {[%emt 0:15:17]} 2. Nf3 {[%emt 0:00:06]} Nc6 {[%emt 0:00:04]} 3. Bc4 {[%emt 0:00:07]} Bc5 {[%emt 0:00:04]} 4. O-O {[%emt 0:00:26]} Nf6 {[%emt 0:02:51]} 5. d3 {[%emt 0:00:07]} d6 {[%emt 0:00:48]} 6. a4 {[%emt 0:00:06]} a5 {[%emt 0:00:42]} 7. Bg5 {[%emt 0:00:33]} h6 {[%emt 0:00:34]} 8. Bh4 {[%emt 0:00:05]} g5 {[%emt 0:03:56]} 9. Bg3 {[%emt 0:00:01]} Bg4 {[%emt 0:00:16]} 10. c3 {[%emt 0:26:11]} Rg8 {[%emt 0:14:15]} 11. Qb3 {[%emt 0:07:08]} Qd7 {[%emt 0:01:25]} 12. Nbd2 {[%emt 0:02:38]} Kf8 {[%emt 0:12:32]} 13. Rae1 {[%emt 0:10:53]} Bb6 {[%emt 0:05:51]} 14. d4 {[%emt 0:06:07]} exd4 {[%emt 0:01:06]} 15. e5 {[%emt 0:04:11]} dxc3 {[%emt 0:08:04]} 16. Qxc3 {[%emt 0:08:39]} Nh5 {[%emt 0:02:33]} 17. exd6 {[%emt 0:06:34]} Nxg3 {[%emt 0:01:10]} 18. Qf6 {[%emt 0:05:38]} Rg7 {[%emt 0:01:11]} 19. Qxh6 {[%emt 0:11:02]} Nf5 {[%emt 0:07:19]} 20. Qh8+ {[%emt 0:00:05]} Rg8 {[%emt 0:00:04]} 21. Qf6 {[%emt 0:00:04]} Rg7 {[%emt 0:03:58]} 22. Nxg5 {[%emt 0:19:42]} Bd4 {[%emt 0:02:14]} 23. Ne6+ {[%emt 0:00:38]} Qxe6 {[%emt 0:00:10]} 24. Qxg7+ {[%emt 0:00:53]} Nxg7 {[%emt 0:00:40]} 25. Bxe6 {[%emt 0:00:05]} Nxe6 {[%emt 0:00:12]} 26. dxc7 {[%emt 0:00:12]} Nxc7 {[%emt 0:00:21]} 27. Re4 {[%emt 0:00:54]} Bf5 {[%emt 0:00:52]} 28. Rh4 {[%emt 0:00:39]} Re8 {[%emt 0:03:09]} 29. g4 {[%emt 0:00:40]} Bd3 {[%emt 0:01:04]} 30. Rd1 {[%emt 0:00:15]} Re2 {[%emt 0:00:30]} 31. Rh3 {[%emt 0:00:26]} Bc2 {[%emt 0:00:14]} 0-1

[Event "95th Caplin Hastings Congress"]
[Site "Hastings"]
[Date "2020.01.03"]
[Round "7.8"]
[White "Korneev, Oleg"]
[Black "Bates, Richard A"]
[Result "1/2-1/2"]
[ECO "B07"]
[WhiteElo "2513"]
[BlackElo "2351"]
[Annotator "ChessBase"]
[PlyCount "47"]
[EventDate "2019.12.28"]
[EventType "swiss"]
[EventCountry "ENG"]
[SourceTitle "playchess.com"]
[Source "ChessBase"]
[SourceQuality "1"]
[TimeControl "40/6600+30:3000+30"]

1. e4 {[%emt 0:22:19]} c5 {[%emt 0:11:04]} 2. c3 {[%emt 0:02:52]} d6 {[%emt 0:04:42]} 3. d4 {[%emt 0:00:23]} Nf6 {[%emt 0:00:11]} 4. Bd3 {[%emt 0:00:03]} g6 {[%emt 0:01:15]} 5. Nf3 {[%emt 0:00:41]} Bg7 {[%emt 0:01:41]} 6. h3 {[%emt 0:00:10]} O-O {[%emt 0:02:10]} 7. O-O {[%emt 0:00:03]} Nc6 {[%emt 0:10:01]} 8. Re1 {[%emt 0:10:02]} e5 {[%emt 0:04:27]} 9. dxc5 {[%emt 0:02:59]} dxc5 {[%emt 0:00:12]} 10. Bg5 {[%emt 0:03:24]} h6 {[%emt 0:02:09]} 11. Bxf6 {[%emt 0:00:08]} Qxf6 {[%emt 0:06:23]} 12. Nbd2 {[%emt 0:00:10]} b6 {[%emt 0:33:43]} 13. Nf1 {[%emt 0:04:19]} Be6 {[%emt 0:03:39]} 14. Qe2 {[%emt 0:01:56]} Na5 {[%emt 0:07:04]} 15. Ne3 {[%emt 0:03:12]} Rad8 {[%emt 0:07:12]} 16. a3 {[%emt 0:22:51]} Qe7 {[%emt 0:07:08]} 17. b4 {[%emt 0:01:22]} c4 {[%emt 0:02:31]} 18. Bc2 {[%emt 0:05:03]} Nb7 {[%emt 0:02:00]} 19. Nxc4 {[%emt 0:09:41]} Qc7 {[%emt 0:03:08]} 20. Ne3 {[%emt 0:11:54]} Qxc3 {[%emt 0:02:08]} 21. Ba4 {[%emt 0:02:36]} Rc8 {[%emt 0:03:11]} 22. Nd5 {[%emt 0:00:03]} Bxd5 {[%emt 0:00:00]} 23. exd5 {[%emt 0:01:39]} Nd6 {[%emt 0:06:19]} 24. Bc6 {[%emt 0:06:36]} 1/2-1/2

[Event "95th Caplin Hastings Congress"]
[Site "Hastings"]
[Date "2020.01.03"]
[Round "7.9"]
[White "Stoyanov, Viktor"]
[Black "Williams, Simon K"]
[Result "0-1"]
[ECO "E90"]
[WhiteElo "2234"]
[BlackElo "2461"]
[Annotator "ChessBase"]
[PlyCount "118"]
[EventDate "2019.12.28"]
[EventType "swiss"]
[EventCountry "ENG"]
[SourceTitle "playchess.com"]
[Source "ChessBase"]
[SourceQuality "1"]
[TimeControl "40/6600+30:3000+30"]

1. d4 {[%emt 0:13:21]} Nf6 {[%emt 0:12:27]} 2. Nf3 {[%emt 0:01:58]} g6 {[%emt 0:03:20]} 3. c4 {[%emt 0:01:23]} Bg7 {[%emt 0:00:17]} 4. Nc3 {[%emt 0:00:11]} O-O {[%emt 0:00:36]} 5. e4 {[%emt 0:00:07]} d6 {[%emt 0:00:14]} 6. h3 {[%emt 0:00:33]} c5 {[%emt 0:03:47]} 7. Be3 {[%emt 0:00:09]} Qa5 {[%emt 0:02:10]} 8. Qd2 {[%emt 0:03:51]} a6 {[%emt 0:14:26]} 9. Be2 {[%emt 0:17:00]} Nc6 {[%emt 0:08:10]} 10. d5 {[%emt 0:17:24]} Nd4 {[%emt 0:00:13]} 11. Nxd4 {[%emt 0:02:39]} cxd4 {[%emt 0:00:04]} 12. Bxd4 {[%emt 0:00:16]} Nxe4 {[%emt 0:00:25]} 13. Qe3 {[%emt 0:00:57]} Bxd4 {[%emt 0:01:30]} 14. Qxd4 {[%emt 0:00:06]} Nxc3 {[%emt 0:00:07]} 15. Qxc3 {[%emt 0:02:25]} Qxc3+ {[%emt 0:00:06]} 16. bxc3 {[%emt 0:00:04]} Bd7 {[%emt 0:01:23]} 17. Rb1 {[%emt 0:00:37]} b5 {[%emt 0:00:49]} 18. cxb5 {[%emt 0:01:58]} axb5 {[%emt 0:00:05]} 19. O-O {[%emt 0:16:16]} Ra5 {[%emt 0:00:38]} 20. Rb2 {[%emt 0:00:36]} Rc8 {[%emt 0:00:19]} 21. Rc1 {[%emt 0:02:49]} Rc5 {[%emt 0:00:38]} 22. Rd2 {[%emt 0:04:54]} Ra3 {[%emt 0:07:35]} 23. c4 {[%emt 0:05:27]} Ra4 {[%emt 0:01:06]} 24. Rdc2 {[%emt 0:03:24]} Bf5 {[%emt 0:00:17]} 25. Rc3 {[%emt 0:00:11]} Rxa2 {[%emt 0:00:41]} 26. Bf3 {[%emt 0:00:06]} bxc4 {[%emt 0:08:18]} 27. Rxc4 {[%emt 0:00:12]} Rxc4 {[%emt 0:00:48]} 28. Rxc4 {[%emt 0:00:02]} g5 {[%emt 0:00:06]} 29. Rc7 {[%emt 0:01:24]} Kf8 {[%emt 0:00:11]} 30. g4 {[%emt 0:03:56]} Bg6 {[%emt 0:00:32]} 31. Kg2 {[%emt 0:00:09]} Ra3 {[%emt 0:05:19]} 32. Rb7 {[%emt 0:02:48]} h6 {[%emt 0:00:06]} 33. Rc7 {[%emt 0:01:19]} Ra4 {[%emt 0:02:02]} 34. Rb7 {[%emt 0:02:16]} Be4 {[%emt 0:07:25]} 35. Rb5 {[%emt 0:01:18]} Kg7 {[%emt 0:00:40]} 36. Rb8 {[%emt 0:00:39]} Bg6 {[%emt 0:03:30]} 37. Kg3 {[%emt 0:01:18]} Ra3 {[%emt 0:01:08]} 38. Kg2 {[%emt 0:00:06]} Kf6 {[%emt 0:00:48]} 39. Rb7 {[%emt 0:00:34]} Bd3 {[%emt 0:02:01]} 40. Rb2 {[%emt 0:01:02]} Bc4 {[%emt 0:03:22]} 41. Rb4 {[%emt 0:50:31]} Rc3 {[%emt 0:50:43]} 42. Ra4 {[%emt 0:00:21]} Rc1 {[%emt 0:02:16]} 43. Ra3 {[%emt 0:00:26]} Rc2 {[%emt 0:00:40]} 44. Ra4 {[%emt 0:00:22]} Rc3 {[%emt 0:00:18]} 45. Rb4 {[%emt 0:02:25]} Ke5 {[%emt 0:01:36]} 46. Rb8 {[%emt 0:00:17]} Bf1+ {[%emt 0:07:40]} 47. Kxf1 {[%emt 0:00:35]} Rxf3 {[%emt 0:00:03]} 48. Kg2 {[%emt 0:00:22]} Rf6 {[%emt 0:01:16]} 49. Rb7 {[%emt 0:00:31]} e6 {[%emt 0:01:14]} 50. dxe6 {[%emt 0:00:05]} fxe6 {[%emt 0:00:03]} 51. Rb2 {[%emt 0:01:13]} d5 {[%emt 0:00:14]} 52. Kf1 {[%emt 0:00:14]} Rf3 {[%emt 0:00:52]} 53. Re2+ {[%emt 0:00:28]} Kd6 {[%emt 0:00:19]} 54. Kg2 {[%emt 0:00:14]} Rc3 {[%emt 0:00:11]} 55. Ra2 {[%emt 0:00:47]} e5 {[%emt 0:00:10]} 56. Ra8 {[%emt 0:00:09]} Rc6 {[%emt 0:01:38]} 57. Kf1 {[%emt 0:00:26]} e4 {[%emt 0:00:12]} 58. Ke2 {[%emt 0:00:42]} Ke5 {[%emt 0:00:16]} 59. Ra4 {[%emt 0:00:33]} Rc3 {[%emt 0:00:10]} 0-1

[Event "95th Caplin Hastings Congress"]
[Site "Hastings"]
[Date "2020.01.03"]
[Round "7.11"]
[White "Brouwer, Dennis"]
[Black "Flear, Glenn C"]
[Result "0-1"]
[ECO "C83"]
[WhiteElo "2209"]
[BlackElo "2435"]
[Annotator "NA"]
[PlyCount "66"]
[EventDate "2019.12.28"]
[EventType "swiss"]
[EventCountry "ENG"]
[SourceTitle "playchess.com"]
[Source "ChessBase"]
[SourceQuality "1"]
[TimeControl "40/6600+30:3000+30"]

1. e4 {[%emt 0:09:34]} e5 {[%emt 0:11:59]} 2. Nf3 {[%emt 0:00:09]} Nc6 {[%emt 0:00:09]} 3. Bb5 {[%emt 0:00:12]} a6 {[%emt 0:00:27]} 4. Ba4 {[%emt 0:00:10]} Nf6 {[%emt 0:00:08]} 5. O-O {[%emt 0:00:38]} Nxe4 {[%emt 0:03:08]} 6. d4 {[%emt 0:00:00]} b5 {[%emt 0:00:08]} 7. Bb3 {[%emt 0:00:00]} d5 {[%emt 0:00:07]} 8. dxe5 {[%emt 0:00:00]} Be6 {[%emt 0:00:07]} 9. Be3 {[%emt 0:00:10]} Be7 {[%emt 0:01:04]} 10. c3 {[%emt 0:01:33]} Nc5 {[%emt 0:04:26]} 11. Nbd2 {[%emt 0:25:56]} Nd3 $11 {[%emt 0:03:38]} 12. Qb1 {[%emt 0:22:17]} Ndxe5 {[%emt 0:01:13]} 13. Nxe5 {[%emt 0:02:29]} Nxe5 {[%emt 0:00:08]} 14. Bd4 {[%emt 0:17:54]} f6 15. Bc2 {[%emt 0:02:48]} g6 16. Re1 {[%emt 0:09:50]} Bf7 {[%emt 0:44:49]} 17. Bxe5 {[%emt 0:00:30]} fxe5 {[%emt 0:00:30]} 18. Rxe5 {[%emt 0:00:18]} O-O {[%emt 0:00:10]} 19. Nf3 {[%emt 0:02:52]} Bf6 {[%emt 0:01:03]} 20. Re1 {[%emt 0:00:15]} Qd6 21. Qd1 {[%emt 0:02:06]} b4 22. Qd2 {[%emt 0:04:00]} bxc3 {[%emt 0:05:21]} 23. bxc3 {[%emt 0:02:27]} Rfe8 24. Bb3 {[%emt 0:03:04]} Qc5 {[%emt 0:08:58]} 25. Nd4 {[%emt 0:01:14]} Qa5 26. Rac1 {[%emt 0:05:26]} Rxe1+ 27. Qxe1 {[%emt 0:06:39]} c5 {[%emt 0:04:28]} 28. Nc6 {[%emt 0:00:47]} Qc7 {[%emt 0:01:00]} 29. Ba4 {[%emt 0:00:00]} Re8 {[%emt 0:03:01]} 30. Qf1 {[%emt 0:00:00]} Re6 {[%emt 0:00:57]} 31. Qxa6 {[%emt 0:00:00]} Be8 {[%emt 0:01:26]} 32. Qa8 {[%emt 0:00:00]} Kf7 {[%emt 0:01:56]} 33. Nd4 {[%emt 0:02:09]} cxd4 {[%emt 0:00:22]} 0-1

[Event "95th Caplin Hastings Congress"]
[Site "Hastings"]
[Date "2020.01.03"]
[Round "7.13"]
[White "Merry, Alan B"]
[Black "Yao, Lan"]
[Result "1/2-1/2"]
[ECO "E16"]
[WhiteElo "2423"]
[BlackElo "2281"]
[Annotator "NA RC"]
[PlyCount "95"]
[EventDate "2019.12.28"]
[EventType "swiss"]
[EventCountry "ENG"]
[SourceTitle "playchess.com"]
[Source "ChessBase"]
[SourceQuality "1"]
[TimeControl "40/6600+30:3000+30"]

1. d4 {[%emt 0:09:31]} Nf6 {[%emt 0:09:35]} 2. c4 {[%emt 0:00:03]} e6 {[%emt 0:00:05]} 3. g3 {[%emt 0:00:01]} Bb4+ {[%emt 0:00:07]} 4. Bd2 {[%emt 0:00:06]} a5 {[%emt 0:00:08]} 5. Bg2 {[%emt 0:00:05]} O-O {[%emt 0:00:05]} 6. Nf3 {[%emt 0:00:01]} b6 {[%emt 0:00:08]} 7. O-O {[%emt 0:00:06]} Bb7 {[%emt 0:00:13]} 8. Bf4 {[%emt 0:00:32]} Be7 {[%emt 0:00:15]} 9. Qc2 {[%emt 0:00:05]} Be4 {[%emt 0:02:51]} 10. Qc1 {[%emt 0:00:03]} Bb7 {[%emt 0:04:01]} 11. Nc3 {[%emt 0:00:05]} Ne4 {[%emt 0:01:28]} 12. Nb5 {[%emt 0:17:55]} c6 {[%emt 0:03:50]} 13. Nc3 {[%emt 0:00:00]} Nxc3 {[%emt 0:09:57]} 14. bxc3 {[%emt 0:00:00]} d5 {[%emt 0:11:20]} 15. Rb1 {[%emt 0:00:00]} Nd7 {[%emt 0:01:32]} 16. Qb2 {[%emt 0:18:13]} Ba6 $11 {[%emt 0:02:02]} ({Much worse is} 16... dxc4 $6 17. Ne5 $16) 17. cxd5 {[%emt 0:00:54]} cxd5 {[%emt 0:00:14]} 18. a4 {[%emt 0:02:12]} Rc8 {[%emt 0:03:08]} 19. Rfe1 {[%emt 0:09:55]} Re8 {[%emt 0:17:56]} 20. Ne5 {[%emt 0:17:36]} Nxe5 21. Bxe5 {[%emt 0:00:05]} Rc6 {[%emt 0:00:43]} 22. e4 {[%emt 0:00:12]} Bd3 {[%emt 0:08:22]} 23. exd5 {[%emt 0:01:07]} exd5 {[%emt 0:00:05]} 24. Rbd1 {[%emt 0:00:38]} Bc4 {[%emt 0:00:31]} 25. h4 {[%emt 0:02:30]} Bd6 {[%emt 0:12:36]} 26. Bh3 {[%emt 0:14:45]} Bxe5 {[%emt 0:08:01]} 27. dxe5 {[%emt 0:00:07]} Qc7 {[%emt 0:00:42]} 28. Qd2 {[%emt 0:10:43]} Bb3 {[%emt 0:03:03]} 29. Rb1 {[%emt 0:01:54]} Rxc3 {[%emt 0:06:59]} 30. e6 {[%emt 0:01:25]} d4 {[%emt 0:09:25]} 31. exf7+ {[%emt 0:06:11]} Bxf7 {[%emt 0:00:48]} 32. Rxe8+ {[%emt 0:03:13]} Bxe8 {[%emt 0:00:01]} 33. Qxd4 {[%emt 0:00:38]} Rc1+ {[%emt 0:01:00]} 34. Rxc1 {[%emt 0:00:04]} Qxc1+ {[%emt 0:00:02]} 35. Bf1 {[%emt 0:01:19]} Qc7 {[%emt 0:02:26]} 36. Qe4 {[%emt 0:03:30]} Qd8 {[%emt 0:00:56]} 37. Bd3 {[%emt 0:01:47]} Bg6 {[%emt 0:00:47]} 38. Qe6+ {[%emt 0:00:20]} Bf7 {[%emt 0:01:59]} 39. Bxh7+ {[%emt 0:00:39]} Kxh7 {[%emt 0:00:02]} 40. Qxf7 {[%emt 0:00:05]} Qd1+ {[%emt 0:00:04]} 41. Kh2 {[%emt 0:02:55]} Qxa4 {[%emt 0:00:06]} 42. Qh5+ {[%emt 0:00:24]} Kg8 {[%emt 0:00:04]} 43. Qd5+ {[%emt 0:00:08]} Kh7 {[%emt 0:00:07]} 44. Qd3+ {[%emt 0:00:13]} Kh8 {[%emt 0:00:07]} 45. Qd8+ {[%emt 0:00:12]} Kh7 {[%emt 0:00:04]} 46. Qxb6 {[%emt 0:00:05]} Qb4 {[%emt 0:00:12]} 47. Qe6 {[%emt 0:06:38]} a4 {[%emt 0:00:13]} 48. Qf5+ {[%emt 0:00:43]} 1/2-1/2

[Event "95th Caplin Hastings Congress"]
[Site "Hastings"]
[Date "2020.01.03"]
[Round "7.16"]
[White "Gormally, Daniel W"]
[Black "Eames, Robert S"]
[Result "1-0"]
[ECO "E04"]
[WhiteElo "2508"]
[BlackElo "2150"]
[Annotator "ChessBase"]
[PlyCount "87"]
[EventDate "2019.12.28"]
[EventType "swiss"]
[EventCountry "ENG"]
[SourceTitle "playchess.com"]
[Source "ChessBase"]
[SourceQuality "1"]
[TimeControl "40/6600+30:3000+30"]

1. d4 {[%emt 0:09:36]} Nf6 {[%emt 0:09:41]} 2. Nf3 {[%emt 0:00:04]} d5 {[%emt 0:00:11]} 3. c4 {[%emt 0:00:07]} e6 {[%emt 0:00:39]} 4. g3 {[%emt 0:00:06]} dxc4 {[%emt 0:00:13]} 5. Bg2 {[%emt 0:00:04]} Bb4+ {[%emt 0:00:11]} 6. Nc3 {[%emt 0:00:06]} O-O {[%emt 0:01:44]} 7. O-O {[%emt 0:00:08]} Nc6 {[%emt 0:00:43]} 8. Bg5 {[%emt 0:00:26]} Rb8 {[%emt 0:03:37]} 9. e3 {[%emt 0:04:34]} b5 {[%emt 0:08:47]} 10. a4 {[%emt 0:00:40]} Bxc3 {[%emt 0:03:21]} 11. bxc3 {[%emt 0:01:47]} b4 {[%emt 0:00:15]} 12. Nd2 {[%emt 0:08:41]} Na5 {[%emt 0:00:57]} 13. cxb4 {[%emt 0:06:25]} Rxb4 {[%emt 0:01:53]} 14. Ne4 {[%emt 0:02:36]} Bb7 {[%emt 0:02:54]} 15. Nxf6+ {[%emt 0:06:45]} gxf6 {[%emt 0:00:07]} 16. Bh6 {[%emt 0:00:02]} f5 {[%emt 0:05:55]} 17. e4 {[%emt 0:13:23]} Nb3 {[%emt 0:11:52]} 18. d5 {[%emt 0:06:59]} Qf6 {[%emt 0:10:49]} 19. Bxf8 {[%emt 0:01:35]} Kxf8 {[%emt 0:00:07]} 20. Qe1 {[%emt 0:07:20]} a5 {[%emt 0:04:04]} 21. e5 {[%emt 0:06:31]} Qe7 {[%emt 0:07:54]} 22. Rd1 {[%emt 0:03:47]} exd5 {[%emt 0:01:33]} 23. Bxd5 {[%emt 0:00:22]} c5 {[%emt 0:01:53]} 24. Bxb7 {[%emt 0:03:57]} Qxb7 {[%emt 0:00:59]} 25. Qe3 {[%emt 0:10:39]} Nd4 {[%emt 0:02:05]} 26. Rxd4 {[%emt 0:00:42]} cxd4 {[%emt 0:00:09]} 27. Qxd4 {[%emt 0:00:04]} Qb6 {[%emt 0:02:25]} 28. Qd7 {[%emt 0:01:52]} f4 {[%emt 0:06:24]} 29. e6 {[%emt 0:05:25]} Qxe6 {[%emt 0:03:35]} 30. Qd8+ {[%emt 0:02:40]} Qe8 {[%emt 0:00:43]} 31. Qf6 {[%emt 0:01:45]} Qe2 {[%emt 0:05:17]} 32. Qd8+ {[%emt 0:05:09]} Qe8 {[%emt 0:00:17]} 33. Qxa5 {[%emt 0:00:06]} Rxa4 {[%emt 0:00:35]} 34. Qc5+ {[%emt 0:01:31]} Qe7 {[%emt 0:00:59]} 35. Qd4 {[%emt 0:00:23]} Qe2 {[%emt 0:04:55]} 36. Qh8+ {[%emt 0:00:55]} Ke7 {[%emt 0:00:05]} 37. Qc3 {[%emt 0:00:55]} fxg3 {[%emt 0:03:23]} 38. hxg3 {[%emt 0:00:06]} Kd7 {[%emt 0:00:47]} 39. Re1 {[%emt 0:00:55]} Qd3 {[%emt 0:00:29]} 40. Qf6 {[%emt 0:02:08]} Qd5 {[%emt 0:06:01]} 41. Re7+ {[%emt 0:50:38]} Kc8 {[%emt 0:50:06]} 42. Qh8+ {[%emt 0:00:15]} Qd8 {[%emt 0:00:05]} 43. Re8 {[%emt 0:00:05]} Ra1+ {[%emt 0:00:03]} 44. Kg2 {[%emt 0:00:07]} 1-0

[Event "95th Caplin Hastings Congress"]
[Site "Hastings"]
[Date "2020.01.03"]
[Round "7.18"]
[White "Gutierrez Carmona, Juan Alejandr"]
[Black "Vaishali R"]
[Result "1/2-1/2"]
[ECO "B40"]
[WhiteElo "2153"]
[BlackElo "2386"]
[Annotator "NA"]
[PlyCount "67"]
[EventDate "2019.12.28"]
[EventType "swiss"]
[EventCountry "ENG"]
[SourceTitle "playchess.com"]
[Source "ChessBase"]
[SourceQuality "1"]
[TimeControl "40/6600+30:3000+30"]

1. e4 {[%emt 0:11:50]} c5 {[%emt 0:09:55]} 2. Nf3 {[%emt 0:01:10]} e6 {[%emt 0:00:04]} 3. Nc3 {[%emt 0:00:42]} a6 {[%emt 0:00:23]} 4. a4 {[%emt 0:06:48]} Qc7 {[%emt 0:01:36]} 5. g3 {[%emt 0:01:07]} b6 {[%emt 0:04:01]} 6. Bg2 {[%emt 0:01:24]} Bb7 {[%emt 0:00:05]} 7. O-O {[%emt 0:01:29]} d6 {[%emt 0:02:29]} 8. Re1 {[%emt 0:05:31]} Nf6 {[%emt 0:01:01]} 9. d4 {[%emt 0:07:50]} cxd4 {[%emt 0:02:54]} 10. Nxd4 {[%emt 0:05:34]} Be7 {[%emt 0:00:00]} 11. h3 {[%emt 0:08:19]} O-O {[%emt 0:09:30]} 12. g4 {[%emt 0:00:28]} Nc6 {[%emt 0:11:09]} 13. Nxc6 {[%emt 0:04:20]} Bxc6 {[%emt 0:00:31]} 14. f4 {[%emt 0:00:15]} d5 {[%emt 0:05:11]} 15. e5 {[%emt 0:06:26]} Ne4 {[%emt 0:01:26]} 16. Nxe4 {[%emt 0:05:07]} dxe4 {[%emt 0:00:04]} 17. Bxe4 {[%emt 0:08:41]} Rfd8 {[%emt 0:00:31]} 18. Qf3 {[%emt 0:03:45]} Rac8 {[%emt 0:07:47]} 19. c3 {[%emt 0:04:16]} Bc5+ {[%emt 0:13:30]} 20. Kg2 {[%emt 0:09:24]} Bxe4 {[%emt 0:06:24]} 21. Qxe4 {[%emt 0:00:17]} b5 {[%emt 0:00:27]} 22. axb5 {[%emt 0:04:28]} axb5 {[%emt 0:00:03]} 23. Be3 {[%emt 0:03:19]} b4 {[%emt 0:07:18]} 24. cxb4 {[%emt 0:01:15]} Bxe3 {[%emt 0:00:42]} 25. Rxe3 {[%emt 0:00:26]} Rd2+ {[%emt 0:02:02]} 26. Re2 {[%emt 0:01:52]} Rxe2+ 27. Qxe2 {[%emt 0:00:01]} Qb7+ {[%emt 0:00:14]} 28. Qf3 {[%emt 0:03:29]} Qxb4 {[%emt 0:00:06]} 29. b3 {[%emt 0:01:05]} h5 {[%emt 0:01:58]} 30. Ra8 {[%emt 0:00:43]} Qd2+ {[%emt 0:01:06]} 31. Kh1 {[%emt 0:01:34]} Qc1+ {[%emt 0:00:36]} 32. Kg2 {[%emt 0:00:12]} Qd2+ {[%emt 0:00:29]} 33. Kh1 {[%emt 0:00:08]} Qe1+ {[%emt 0:00:05]} 34. Kg2 {[%emt 0:00:08]} 1/2-1/2